[Event "Titled Tuesday Blitz December 27 Late 2022"]
[White "Vasquez Schroeder, Rodrigo"]
[Black "Preotu, Razvan"]
[WhiteFideId "3400042"]
[BlackFideId "2613280"]
[WhiteElo "2524"]
[BlackElo "2475"]
[Result "1-0"]
[Round "06"]
[TimeControl "180+2"]
[Date "2022.12.27"]
[WhiteClock "0:01:52"]
[BlackClock "0:00:05"]

1. e4 {[%clk 0:03:00]}  c5 {[%clk 0:02:58]} 2. Nf3 {[%clk 0:03:00]}  d6 {[%clk 0:02:59]} 3. d4 {[%clk 0:03:01]}  cxd4 {[%clk 0:03:00]} 4. Nxd4 {[%clk 0:03:01]}  Nf6 {[%clk 0:03:00]} 5. Nc3 {[%clk 0:03:02]}  a6 {[%clk 0:03:01]} 6. Bg5 {[%clk 0:03:01]}  e6 {[%clk 0:03:00]} 7. f4 {[%clk 0:03:01]}  Qb6 {[%clk 0:03:00]} 8. Bxf6 {[%clk 0:03:01]}  gxf6 {[%clk 0:02:59]} 9. Qd2 {[%clk 0:03:01]}  Qxb2 {[%clk 0:02:58]} 10. Nb3 {[%clk 0:02:59]}  Qa3 {[%clk 0:02:06]} 11. Be2 {[%clk 0:02:59]}  Qb4 {[%clk 0:01:55]} 12. O-O {[%clk 0:02:57]}  Nc6 {[%clk 0:01:52]} 13. Qe3 {[%clk 0:02:55]}  Qa3 {[%clk 0:01:22]} 14. Kh1 {[%clk 0:02:55]}  h5 {[%clk 0:01:12]} 15. Nb1 {[%clk 0:02:51]}  Qb2 {[%clk 0:01:12]} 16. N1d2 {[%clk 0:02:47]}  f5 {[%clk 0:01:07]} 17. exf5 {[%clk 0:02:44]}  Qf6 {[%clk 0:01:07]} 18. fxe6 {[%clk 0:02:43]}  Qxe6 {[%clk 0:01:00]} 19. Qf2 {[%clk 0:02:41]}  d5 {[%clk 0:00:49]} 20. Bxa6 {[%clk 0:02:30]}  Qf6 {[%clk 0:00:34]} 21. Bb5 {[%clk 0:02:25]}  Bf5 {[%clk 0:00:34]} 22. Rfe1+ {[%clk 0:02:18]}  Be7 {[%clk 0:00:31]} 23. Nd4 {[%clk 0:02:18]}  Bd7 {[%clk 0:00:26]} 24. N2f3 {[%clk 0:02:16]}  h4 {[%clk 0:00:24]} 25. Bxc6 {[%clk 0:02:13]}  bxc6 {[%clk 0:00:25]} 26. Ne5 {[%clk 0:02:13]}  h3 {[%clk 0:00:23]} 27. g3 {[%clk 0:02:12]}  c5 {[%clk 0:00:16]} 28. Nxd7 {[%clk 0:02:11]}  Kxd7 {[%clk 0:00:17]} 29. Nf3 {[%clk 0:02:10]}  Bd6 {[%clk 0:00:16]} 30. Qd2 {[%clk 0:02:06]}  d4 {[%clk 0:00:15]} 31. Qd3 {[%clk 0:02:02]}  Rhe8 {[%clk 0:00:14]} 32. Qb5+ {[%clk 0:02:01]}  Kc7 {[%clk 0:00:14]} 33. Rxe8 {[%clk 0:02:00]}  Rxe8 {[%clk 0:00:13]} 34. Qxe8 {[%clk 0:02:00]}  Qf5 {[%clk 0:00:14]} 35. Qe2 {[%clk 0:01:58]}  Qd5 {[%clk 0:00:13]} 36. c4 {[%clk 0:01:57]}  dxc3 {[%clk 0:00:13]} 37. Rd1 {[%clk 0:01:56]}  Qa8 {[%clk 0:00:13]} 38. Qd3 {[%clk 0:01:54]}  Bf8 {[%clk 0:00:05]} 39. Qd7+ {[%clk 0:01:52]} 1-0


[Site "https://www.chess.com"]

[Event "Titled Tuesday Blitz December 27 Late 2022"]
[White "Vega Gutierrez, Sabrina"]
[Black "reevecanada"]
[WhiteFideId "2219026"]
[WhiteElo "2377"]
[BlackElo "2430"]
[Result "0-1"]
[Round "06"]
[TimeControl "180+2"]
[Date "2022.12.27"]
[WhiteClock "0:00:06"]
[BlackClock "0:00:53"]

1. e4 {[%clk 0:03:00]}  c5 {[%clk 0:02:59]} 2. Nf3 {[%clk 0:03:01]}  d6 {[%clk 0:03:00]} 3. d4 {[%clk 0:03:01]}  cxd4 {[%clk 0:03:01]} 4. Qxd4 {[%clk 0:03:02]}  Nf6 {[%clk 0:03:01]} 5. Nc3 {[%clk 0:03:01]}  Nc6 {[%clk 0:03:01]} 6. Bb5 {[%clk 0:03:01]}  Bd7 {[%clk 0:03:00]} 7. Bxc6 {[%clk 0:03:02]}  bxc6 {[%clk 0:03:01]} 8. e5 {[%clk 0:02:47]}  dxe5 {[%clk 0:02:51]} 9. Nxe5 {[%clk 0:02:37]}  e6 {[%clk 0:02:50]} 10. Bg5 {[%clk 0:02:29]}  Qb6 {[%clk 0:02:44]} 11. Qxb6 {[%clk 0:01:36]}  axb6 {[%clk 0:02:41]} 12. Bxf6 {[%clk 0:01:36]}  gxf6 {[%clk 0:02:40]} 13. Nxd7 {[%clk 0:01:37]}  Kxd7 {[%clk 0:02:39]} 14. O-O-O+ {[%clk 0:01:38]}  Kc7 {[%clk 0:02:39]} 15. Ne4 {[%clk 0:01:37]}  f5 {[%clk 0:02:39]} 16. Nf6 {[%clk 0:01:25]}  Bd6 {[%clk 0:02:23]} 17. a3 {[%clk 0:01:22]}  h5 {[%clk 0:02:19]} 18. Rxd6 {[%clk 0:00:55]}  Kxd6 {[%clk 0:02:17]} 19. Rd1+ {[%clk 0:00:55]}  Ke7 {[%clk 0:02:14]} 20. Nd7 {[%clk 0:00:53]}  Ra6 {[%clk 0:02:08]} 21. Ne5 {[%clk 0:00:51]}  Kf6 {[%clk 0:02:05]} 22. f4 {[%clk 0:00:51]}  Ra7 {[%clk 0:02:01]} 23. Nxc6 {[%clk 0:00:50]}  Ra4 {[%clk 0:01:54]} 24. g3 {[%clk 0:00:49]}  h4 {[%clk 0:01:52]} 25. Ne5 {[%clk 0:00:49]}  hxg3 {[%clk 0:01:51]} 26. hxg3 {[%clk 0:00:50]}  Ra7 {[%clk 0:01:49]} 27. Nd7+ {[%clk 0:00:48]}  Ke7 {[%clk 0:01:47]} 28. Nxb6 {[%clk 0:00:49]}  Rb7 {[%clk 0:01:45]} 29. Nc4 {[%clk 0:00:48]}  Rh3 {[%clk 0:01:44]} 30. Rd3 {[%clk 0:00:46]}  Rd7 {[%clk 0:01:44]} 31. Rxd7+ {[%clk 0:00:37]}  Kxd7 {[%clk 0:01:45]} 32. Ne5+ {[%clk 0:00:38]}  Ke8 {[%clk 0:01:44]} 33. a4 {[%clk 0:00:38]}  f6 {[%clk 0:01:41]} 34. Nd3 {[%clk 0:00:37]}  Rxg3 {[%clk 0:01:41]} 35. a5 {[%clk 0:00:37]}  Kd7 {[%clk 0:01:40]} 36. b4 {[%clk 0:00:37]}  Kc6 {[%clk 0:01:37]} 37. Kb2 {[%clk 0:00:37]}  Kb5 {[%clk 0:01:28]} 38. Kb3 {[%clk 0:00:37]}  e5 {[%clk 0:01:26]} 39. c4+ {[%clk 0:00:14]}  Kc6 {[%clk 0:01:18]} 40. Kc2 {[%clk 0:00:15]}  Rg2+ {[%clk 0:01:12]} 41. Kc3 {[%clk 0:00:14]}  e4 {[%clk 0:01:12]} 42. Nc5 {[%clk 0:00:12]}  Ra2 {[%clk 0:01:11]} 43. Ne6 {[%clk 0:00:09]}  Ra3+ {[%clk 0:01:04]} 44. Kc2 {[%clk 0:00:08]}  Rd3 {[%clk 0:00:58]} 45. Ng7 {[%clk 0:00:07]}  Rf3 {[%clk 0:00:54]} 46. Nxf5 {[%clk 0:00:07]}  Rxf4 {[%clk 0:00:54]} 47. Nd4+ {[%clk 0:00:07]}  Kb7 {[%clk 0:00:54]} 48. b5 {[%clk 0:00:07]}  e3 {[%clk 0:00:53]} 49. Kd3 {[%clk 0:00:08]}  Rxd4+ {[%clk 0:00:53]} 50. Kxd4 {[%clk 0:00:06]}  e2 {[%clk 0:00:53]} 51. Kc5 {[%clk 0:00:06]}  e1=Q {[%clk 0:00:53]} 52. a6+ {[%clk 0:00:06]}  Ka7 {[%clk 0:00:53]} 0-1


[Site "https://www.chess.com"]

[Event "Titled Tuesday Blitz December 27 Late 2022"]
[White "Wang, Alexander J"]
[Black "Aguilar, Juan"]
[WhiteFideId "30955270"]
[BlackFideId "3800091"]
[WhiteElo "1815"]
[BlackElo "2254"]
[Result "0-1"]
[Round "06"]
[TimeControl "180+2"]
[Date "2022.12.27"]
[WhiteClock "0:01:35"]
[BlackClock "0:01:09"]

1. e4 {[%clk 0:03:00]}  g6 {[%clk 0:03:00]} 2. d4 {[%clk 0:03:00]}  Bg7 {[%clk 0:03:00]} 3. Nf3 {[%clk 0:02:58]}  d6 {[%clk 0:03:00]} 4. Nc3 {[%clk 0:02:52]}  a6 {[%clk 0:02:59]} 5. Be3 {[%clk 0:02:51]}  e6 {[%clk 0:02:56]} 6. a4 {[%clk 0:02:50]}  b6 {[%clk 0:02:56]} 7. Bd3 {[%clk 0:02:47]}  Bb7 {[%clk 0:02:51]} 8. Qd2 {[%clk 0:02:46]}  h6 {[%clk 0:02:45]} 9. h4 {[%clk 0:02:46]}  Nd7 {[%clk 0:02:43]} 10. g4 {[%clk 0:02:42]}  Ne7 {[%clk 0:02:41]} 11. g5 {[%clk 0:02:40]}  h5 {[%clk 0:02:30]} 12. Qe2 {[%clk 0:02:39]}  c5 {[%clk 0:02:24]} 13. a5 {[%clk 0:02:27]}  b5 {[%clk 0:02:21]} 14. dxc5 {[%clk 0:02:19]}  dxc5 {[%clk 0:02:16]} 15. Qd2 {[%clk 0:01:58]}  O-O {[%clk 0:02:06]} 16. O-O-O {[%clk 0:01:56]}  b4 {[%clk 0:02:03]} 17. Ne2 {[%clk 0:01:53]}  Qxa5 {[%clk 0:02:00]} 18. Kb1 {[%clk 0:01:53]}  Rfc8 {[%clk 0:01:38]} 19. Bc4 {[%clk 0:01:51]}  Nb6 {[%clk 0:01:36]} 20. Ba2 {[%clk 0:01:46]}  Bxe4 {[%clk 0:01:25]} 21. Neg1 {[%clk 0:01:41]}  c4 {[%clk 0:01:19]} 22. Qd6 {[%clk 0:01:40]}  b3 {[%clk 0:01:13]} 23. Bxb3 {[%clk 0:01:37]}  cxb3 {[%clk 0:01:12]} 24. Bxb6 {[%clk 0:01:35]}  bxc2+ {[%clk 0:01:09]} 0-1


[Site "https://www.chess.com"]

[Event "Titled Tuesday Blitz December 27 Late 2022"]
[White "White, John S."]
[Black "Mitrovic, Darko R"]
[WhiteFideId "2502348"]
[BlackFideId "927023"]
[WhiteElo "2235"]
[BlackElo "2220"]
[Result "0-1"]
[Round "06"]
[TimeControl "180+2"]
[Date "2022.12.27"]
[WhiteClock "0:00:13"]
[BlackClock "0:00:17"]

1. e4 {[%clk 0:02:58]}  e6 {[%clk 0:02:48]} 2. d3 {[%clk 0:02:55]}  d5 {[%clk 0:02:43]} 3. Nd2 {[%clk 0:02:53]}  Nf6 {[%clk 0:02:43]} 4. Ngf3 {[%clk 0:02:52]}  Be7 {[%clk 0:02:43]} 5. g3 {[%clk 0:02:51]}  O-O {[%clk 0:02:42]} 6. Bg2 {[%clk 0:02:51]}  c5 {[%clk 0:02:43]} 7. O-O {[%clk 0:02:50]}  Nc6 {[%clk 0:02:43]} 8. Re1 {[%clk 0:02:50]}  b5 {[%clk 0:02:44]} 9. e5 {[%clk 0:02:49]}  Nd7 {[%clk 0:02:43]} 10. Nf1 {[%clk 0:02:47]}  a5 {[%clk 0:02:43]} 11. Bf4 {[%clk 0:02:46]}  Ba6 {[%clk 0:02:43]} 12. h4 {[%clk 0:02:44]}  Rc8 {[%clk 0:02:41]} 13. N1h2 {[%clk 0:02:42]}  a4 {[%clk 0:02:41]} 14. a3 {[%clk 0:02:40]}  Nb6 {[%clk 0:02:23]} 15. h5 {[%clk 0:02:38]}  b4 {[%clk 0:02:22]} 16. Ng4 {[%clk 0:02:34]}  Nd4 {[%clk 0:02:16]} 17. Qd2 {[%clk 0:02:31]}  Nxf3+ {[%clk 0:01:56]} 18. Bxf3 {[%clk 0:02:30]}  bxa3 {[%clk 0:01:51]} 19. bxa3 {[%clk 0:02:29]}  c4 {[%clk 0:01:51]} 20. h6 {[%clk 0:02:27]}  g5 {[%clk 0:01:04]} 21. Nf6+ {[%clk 0:01:32]}  Bxf6 {[%clk 0:01:03]} 22. exf6 {[%clk 0:01:31]}  gxf4 {[%clk 0:01:02]} 23. Qxf4 {[%clk 0:01:24]}  Kh8 {[%clk 0:01:00]} 24. Re5 {[%clk 0:01:06]}  Rg8 {[%clk 0:00:57]} 25. Rg5 {[%clk 0:01:04]}  Rg6 {[%clk 0:00:49]} 26. Rxg6 {[%clk 0:00:53]}  hxg6 {[%clk 0:00:48]} 27. h7 {[%clk 0:00:50]}  cxd3 {[%clk 0:00:35]} 28. cxd3 {[%clk 0:00:37]}  Bxd3 {[%clk 0:00:34]} 29. Kg2 {[%clk 0:00:35]}  Nd7 {[%clk 0:00:23]} 30. g4 {[%clk 0:00:26]}  Qxf6 {[%clk 0:00:20]} 31. Qxf6+ {[%clk 0:00:18]}  Nxf6 {[%clk 0:00:19]} 32. g5 {[%clk 0:00:14]}  Nxh7 {[%clk 0:00:18]} 33. Rh1 {[%clk 0:00:13]}  Kg7 {[%clk 0:00:17]} 0-1


[Site "https://www.chess.com"]

[Event "Titled Tuesday Blitz December 27 Late 2022"]
[White "Xiong, Jeffery"]
[Black "Vakhlamov, Igor L."]
[WhiteFideId "2047640"]
[BlackFideId "24126748"]
[WhiteElo "2692"]
[BlackElo "2413"]
[Result "1-0"]
[Round "06"]
[TimeControl "180+2"]
[Date "2022.12.27"]
[WhiteClock "0:00:18"]
[BlackClock "0:00:01"]

1. e4 {[%clk 0:03:00]}  c5 {[%clk 0:02:58]} 2. Nf3 {[%clk 0:03:00]}  g6 {[%clk 0:02:58]} 3. c3 {[%clk 0:03:00]}  Bg7 {[%clk 0:02:58]} 4. d4 {[%clk 0:03:00]}  cxd4 {[%clk 0:02:59]} 5. cxd4 {[%clk 0:03:01]}  Nf6 {[%clk 0:02:59]} 6. Bd3 {[%clk 0:02:59]}  O-O {[%clk 0:02:59]} 7. O-O {[%clk 0:02:59]}  d5 {[%clk 0:02:55]} 8. e5 {[%clk 0:02:59]}  Ne4 {[%clk 0:02:55]} 9. Ne1 {[%clk 0:02:58]}  f6 {[%clk 0:02:52]} 10. f3 {[%clk 0:02:55]}  Ng5 {[%clk 0:02:52]} 11. Nc2 {[%clk 0:02:54]}  Nc6 {[%clk 0:02:49]} 12. Nc3 {[%clk 0:02:53]}  Nf7 {[%clk 0:02:42]} 13. f4 {[%clk 0:02:48]}  Nh6 {[%clk 0:02:15]} 14. Be3 {[%clk 0:02:39]}  Bf5 {[%clk 0:02:15]} 15. Kh1 {[%clk 0:02:38]}  Rc8 {[%clk 0:02:13]} 16. Bg1 {[%clk 0:02:36]}  a6 {[%clk 0:02:08]} 17. Ne3 {[%clk 0:02:26]}  Bxd3 {[%clk 0:02:07]} 18. Qxd3 {[%clk 0:02:26]}  e6 {[%clk 0:02:00]} 19. Nc2 {[%clk 0:02:15]}  Qe7 {[%clk 0:01:51]} 20. Rae1 {[%clk 0:02:15]}  fxe5 {[%clk 0:01:51]} 21. dxe5 {[%clk 0:02:16]}  Nb4 {[%clk 0:01:41]} 22. Nxb4 {[%clk 0:02:15]}  Qxb4 {[%clk 0:01:42]} 23. Qd2 {[%clk 0:02:06]}  Nf5 {[%clk 0:01:39]} 24. Bf2 {[%clk 0:01:59]}  d4 {[%clk 0:01:34]} 25. Ne4 {[%clk 0:01:59]}  Qxd2 {[%clk 0:01:35]} 26. Nxd2 {[%clk 0:02:00]}  Rc2 {[%clk 0:01:36]} 27. Ne4 {[%clk 0:01:55]}  Rxb2 {[%clk 0:01:27]} 28. Nc5 {[%clk 0:01:28]}  Rc8 {[%clk 0:01:17]} 29. Nxe6 {[%clk 0:01:28]}  Rcc2 {[%clk 0:01:17]} 30. g4 {[%clk 0:01:08]}  Ne3 {[%clk 0:00:39]} 31. Nxd4 {[%clk 0:01:08]}  Rxf2 {[%clk 0:00:40]} 32. Rxf2 {[%clk 0:01:08]}  Rxf2 {[%clk 0:00:40]} 33. Rxe3 {[%clk 0:01:09]}  Rxf4 {[%clk 0:00:41]} 34. e6 {[%clk 0:01:10]}  Bf8 {[%clk 0:00:32]} 35. Ne2 {[%clk 0:01:08]}  Rxg4 {[%clk 0:00:23]} 36. e7 {[%clk 0:01:08]}  Bxe7 {[%clk 0:00:24]} 37. Rxe7 {[%clk 0:01:09]}  Ra4 {[%clk 0:00:23]} 38. Nc3 {[%clk 0:01:09]}  Ra3 {[%clk 0:00:23]} 39. Nd5 {[%clk 0:00:40]}  Rxa2 {[%clk 0:00:21]} 40. Nf6+ {[%clk 0:00:39]}  Kf8 {[%clk 0:00:21]} 41. Rxb7 {[%clk 0:00:38]}  h5 {[%clk 0:00:19]} 42. Ra7 {[%clk 0:00:38]}  a5 {[%clk 0:00:18]} 43. Kg1 {[%clk 0:00:32]}  a4 {[%clk 0:00:17]} 44. Nd7+ {[%clk 0:00:33]}  Kg8 {[%clk 0:00:16]} 45. h4 {[%clk 0:00:28]}  Rd2 {[%clk 0:00:13]} 46. Ne5 {[%clk 0:00:25]}  Rd4 {[%clk 0:00:10]} 47. Nf3 {[%clk 0:00:25]}  Rf4 {[%clk 0:00:08]} 48. Kf2 {[%clk 0:00:25]}  Rg4 {[%clk 0:00:08]} 49. Ke3 {[%clk 0:00:25]}  Kf8 {[%clk 0:00:07]} 50. Ne5 {[%clk 0:00:26]}  Rg3+ {[%clk 0:00:02]} 51. Kf4 {[%clk 0:00:25]}  Rg1 {[%clk 0:00:02]} 52. Rxa4 {[%clk 0:00:19]}  Kg7 {[%clk 0:00:03]} 53. Ra7+ {[%clk 0:00:19]}  Kh6 {[%clk 0:00:02]} 54. Nf7+ {[%clk 0:00:18]}  Kg7 {[%clk 0:00:02]} 55. Ng5+ {[%clk 0:00:19]}  Kg8 {[%clk 0:00:02]} 56. Ke5 {[%clk 0:00:19]}  Rf1 {[%clk 0:00:01]} 57. Ke6 {[%clk 0:00:19]}  Rf5 {[%clk 0:00:01]} 58. Rf7 {[%clk 0:00:18]} 1-0


[Site "https://www.chess.com"]

[Event "Titled Tuesday Blitz December 27 Late 2022"]
[White "Albertini, Luca"]
[Black "Garcia, Gabriel Gonzaga"]
[WhiteFideId "847038"]
[BlackFideId "2138956"]
[WhiteElo "2084"]
[BlackElo "2091"]
[Result "0-1"]
[Round "07"]
[TimeControl "180+2"]
[Date "2022.12.27"]
[WhiteClock "0:00:12"]
[BlackClock "0:00:27"]

1. e4 {[%clk 0:03:00]}  c6 {[%clk 0:02:59]} 2. d4 {[%clk 0:02:57]}  d5 {[%clk 0:03:00]} 3. e5 {[%clk 0:02:57]}  Bf5 {[%clk 0:02:56]} 4. h4 {[%clk 0:02:55]}  h5 {[%clk 0:02:55]} 5. Bd3 {[%clk 0:02:49]}  Bxd3 {[%clk 0:02:55]} 6. Qxd3 {[%clk 0:02:48]}  e6 {[%clk 0:02:56]} 7. Ne2 {[%clk 0:02:45]}  Be7 {[%clk 0:02:56]} 8. g3 {[%clk 0:02:45]}  c5 {[%clk 0:02:55]} 9. O-O {[%clk 0:02:44]}  Nc6 {[%clk 0:02:52]} 10. c4 {[%clk 0:02:42]}  cxd4 {[%clk 0:02:48]} 11. cxd5 {[%clk 0:02:34]}  Qxd5 {[%clk 0:02:49]} 12. Rd1 {[%clk 0:02:25]}  Rd8 {[%clk 0:02:48]} 13. Bf4 {[%clk 0:02:20]}  Nh6 {[%clk 0:02:33]} 14. Nd2 {[%clk 0:02:19]}  Ng4 {[%clk 0:01:56]} 15. Nb3 {[%clk 0:02:05]}  Ncxe5 {[%clk 0:01:54]} 16. Bxe5 {[%clk 0:01:50]}  Nxe5 {[%clk 0:01:55]} 17. Nf4 {[%clk 0:01:44]}  Nxd3 {[%clk 0:01:52]} 18. Nxd5 {[%clk 0:01:44]}  Rxd5 {[%clk 0:01:52]} 19. Rxd3 {[%clk 0:01:43]}  e5 {[%clk 0:01:53]} 20. f4 {[%clk 0:01:43]}  f6 {[%clk 0:01:52]} 21. Kg2 {[%clk 0:01:41]}  Kd7 {[%clk 0:01:50]} 22. Re1 {[%clk 0:01:42]}  Rc8 {[%clk 0:01:46]} 23. Re2 {[%clk 0:01:38]}  Bd6 {[%clk 0:01:36]} 24. Kf3 {[%clk 0:01:35]}  Rb5 {[%clk 0:01:20]} 25. fxe5 {[%clk 0:01:32]}  fxe5 {[%clk 0:01:20]} 26. Ke4 {[%clk 0:01:32]}  Rf8 {[%clk 0:01:16]} 27. a4 {[%clk 0:01:25]}  Rb4 {[%clk 0:01:09]} 28. a5 {[%clk 0:01:22]}  Rf1 {[%clk 0:01:04]} 29. Nd2 {[%clk 0:01:21]}  Rf6 {[%clk 0:00:58]} 30. Nf3 {[%clk 0:01:19]}  Rb5 {[%clk 0:00:55]} 31. Ng5 {[%clk 0:01:19]}  Rxa5 {[%clk 0:00:53]} 32. Rb3 {[%clk 0:01:07]}  b6 {[%clk 0:00:53]} 33. Rc2 {[%clk 0:01:03]}  Rc5 {[%clk 0:00:53]} 34. Re2 {[%clk 0:01:01]}  b5 {[%clk 0:00:50]} 35. Ra3 {[%clk 0:01:01]}  Bb8 {[%clk 0:00:47]} 36. Ra5 {[%clk 0:00:58]}  Kc7 {[%clk 0:00:42]} 37. b4 {[%clk 0:00:51]}  Rc3 {[%clk 0:00:40]} 38. Rxb5 {[%clk 0:00:51]}  Rxg3 {[%clk 0:00:39]} 39. Kd5 {[%clk 0:00:44]}  Rb6 {[%clk 0:00:33]} 40. Rc5+ {[%clk 0:00:36]}  Kd7 {[%clk 0:00:31]} 41. Ne4 {[%clk 0:00:35]}  Rgg6 {[%clk 0:00:26]} 42. Rf2 {[%clk 0:00:34]}  Rgd6+ {[%clk 0:00:23]} 43. Nxd6 {[%clk 0:00:34]}  Rxd6+ {[%clk 0:00:24]} 44. Kc4 {[%clk 0:00:34]}  d3 {[%clk 0:00:24]} 45. Rf7+ {[%clk 0:00:20]}  Ke6 {[%clk 0:00:24]} 46. Rf1 {[%clk 0:00:17]}  d2 {[%clk 0:00:24]} 47. Kc3 {[%clk 0:00:15]}  d1=Q {[%clk 0:00:23]} 48. Rxd1 {[%clk 0:00:14]}  Rxd1 {[%clk 0:00:24]} 49. Rc8 {[%clk 0:00:14]}  Bd6 {[%clk 0:00:24]} 50. Ra8 {[%clk 0:00:13]}  Rc1+ {[%clk 0:00:22]} 51. Kb2 {[%clk 0:00:13]}  Rc4 {[%clk 0:00:22]} 52. Rxa7 {[%clk 0:00:12]}  Rxb4+ {[%clk 0:00:23]} 53. Kc2 {[%clk 0:00:13]}  Rxh4 {[%clk 0:00:23]} 54. Rxg7 {[%clk 0:00:13]}  Rg4 {[%clk 0:00:23]} 55. Rh7 {[%clk 0:00:13]}  h4 {[%clk 0:00:24]} 56. Kd3 {[%clk 0:00:14]}  Kd5 {[%clk 0:00:24]} 57. Ke3 {[%clk 0:00:14]}  Rg3+ {[%clk 0:00:24]} 58. Kf2 {[%clk 0:00:15]}  Rg4 {[%clk 0:00:24]} 59. Kf3 {[%clk 0:00:15]}  Rf4+ {[%clk 0:00:25]} 60. Ke3 {[%clk 0:00:15]}  e4 {[%clk 0:00:26]} 61. Rh5+ {[%clk 0:00:14]}  Be5 {[%clk 0:00:26]} 62. Rg5 {[%clk 0:00:10]}  Rf3+ {[%clk 0:00:26]} 63. Ke2 {[%clk 0:00:11]}  h3 {[%clk 0:00:27]} 64. Rh5 {[%clk 0:00:11]}  h2 {[%clk 0:00:28]} 65. Rh4 {[%clk 0:00:11]}  Ra3 {[%clk 0:00:28]} 66. Rh7 {[%clk 0:00:10]}  Ra1 {[%clk 0:00:28]} 67. Rd7+ {[%clk 0:00:10]}  Bd6 {[%clk 0:00:29]} 68. Rh7 {[%clk 0:00:10]}  h1=Q {[%clk 0:00:28]} 69. Rxh1 {[%clk 0:00:06]}  Rxh1 {[%clk 0:00:29]} 70. Kf2 {[%clk 0:00:07]}  Rh3 {[%clk 0:00:29]} 71. Ke2 {[%clk 0:00:07]}  Kd4 {[%clk 0:00:28]} 72. Kf2 {[%clk 0:00:08]}  Rh2+ {[%clk 0:00:27]} 73. Kg1 {[%clk 0:00:08]}  Ke3 {[%clk 0:00:28]} 74. Kf1 {[%clk 0:00:09]}  Re2 {[%clk 0:00:25]} 75. Kg1 {[%clk 0:00:10]}  Kf3 {[%clk 0:00:26]} 76. Kf1 {[%clk 0:00:11]}  e3 {[%clk 0:00:25]} 77. Kg1 {[%clk 0:00:11]}  Rf2 {[%clk 0:00:26]} 78. Kh1 {[%clk 0:00:11]}  Kg3 {[%clk 0:00:27]} 79. Kg1 {[%clk 0:00:12]}  e2 {[%clk 0:00:28]} 80. Kh1 {[%clk 0:00:12]}  e1=R# {[%clk 0:00:27]} 0-1


[Site "https://www.chess.com"]

[Event "Titled Tuesday Blitz December 27 Late 2022"]
[White "Balague Camps, Marc"]
[Black "Vargas, Mauricio"]
[WhiteFideId "2297914"]
[BlackFideId "4404572"]
[WhiteElo "2190"]
[BlackElo "2035"]
[Result "1-0"]
[Round "07"]
[TimeControl "180+2"]
[Date "2022.12.27"]
[WhiteClock "0:01:45"]
[BlackClock "0:01:28"]

1. d4 {[%clk 0:03:00]}  d5 {[%clk 0:02:59]} 2. c4 {[%clk 0:03:01]}  c6 {[%clk 0:03:00]} 3. cxd5 {[%clk 0:03:01]}  cxd5 {[%clk 0:03:00]} 4. Bf4 {[%clk 0:03:02]}  Nc6 {[%clk 0:03:01]} 5. e3 {[%clk 0:03:02]}  h5 {[%clk 0:03:01]} 6. Nc3 {[%clk 0:03:02]}  e6 {[%clk 0:02:55]} 7. h4 {[%clk 0:03:01]}  a6 {[%clk 0:02:54]} 8. Nh3 {[%clk 0:03:01]}  Nf6 {[%clk 0:02:50]} 9. Bd3 {[%clk 0:03:00]}  Ng4 {[%clk 0:02:49]} 10. f3 {[%clk 0:02:41]}  Nf6 {[%clk 0:02:45]} 11. Qe2 {[%clk 0:02:38]}  Bd6 {[%clk 0:02:43]} 12. Rd1 {[%clk 0:02:37]}  Bd7 {[%clk 0:02:39]} 13. Bxd6 {[%clk 0:02:36]}  Ng8 {[%clk 0:02:10]} 14. Qf2 {[%clk 0:02:31]}  Nge7 {[%clk 0:02:08]} 15. Ng5 {[%clk 0:02:27]}  g6 {[%clk 0:02:07]} 16. Bb1 {[%clk 0:02:22]}  Nc8 {[%clk 0:02:04]} 17. Ba3 {[%clk 0:02:19]}  b5 {[%clk 0:02:03]} 18. Bc5 {[%clk 0:02:16]}  b4 {[%clk 0:02:01]} 19. Ne2 {[%clk 0:02:13]}  Qa5 {[%clk 0:01:57]} 20. b3 {[%clk 0:02:12]}  N8a7 {[%clk 0:01:43]} 21. Bd6 {[%clk 0:01:55]}  Nb5 {[%clk 0:01:41]} 22. Qg3 {[%clk 0:01:48]}  Na3 {[%clk 0:01:29]} 23. Nxf7 {[%clk 0:01:47]}  Kxf7 {[%clk 0:01:28]} 24. Qxg6# {[%clk 0:01:45]} 1-0


[Site "https://www.chess.com"]

[Event "Titled Tuesday Blitz December 27 Late 2022"]
[White "Beerdsen, Thomas"]
[Black "Denishev, Marat"]
[WhiteFideId "1030108"]
[BlackFideId "24131563"]
[WhiteElo "2507"]
[BlackElo "2255"]
[Result "1-0"]
[Round "07"]
[TimeControl "180+2"]
[Date "2022.12.27"]
[WhiteClock "0:01:35"]
[BlackClock "0:00:04"]

1. e4 {[%clk 0:03:00]}  Nf6 {[%clk 0:02:56]} 2. e5 {[%clk 0:03:00]}  Nd5 {[%clk 0:02:56]} 3. d4 {[%clk 0:02:59]}  d6 {[%clk 0:02:56]} 4. Nf3 {[%clk 0:02:58]}  dxe5 {[%clk 0:02:56]} 5. Nxe5 {[%clk 0:02:59]}  c6 {[%clk 0:02:57]} 6. Bd3 {[%clk 0:02:59]}  g6 {[%clk 0:02:52]} 7. h4 {[%clk 0:02:58]}  Bg7 {[%clk 0:02:51]} 8. h5 {[%clk 0:02:59]}  Nd7 {[%clk 0:02:49]} 9. hxg6 {[%clk 0:02:53]}  Nxe5 {[%clk 0:02:45]} 10. dxe5 {[%clk 0:02:53]}  hxg6 {[%clk 0:02:43]} 11. Rxh8+ {[%clk 0:02:52]}  Bxh8 {[%clk 0:02:44]} 12. Qe2 {[%clk 0:02:49]}  Nb4 {[%clk 0:02:37]} 13. Bc4 {[%clk 0:02:43]}  Bf5 {[%clk 0:02:01]} 14. Na3 {[%clk 0:02:33]}  Qa5 {[%clk 0:01:08]} 15. Bd2 {[%clk 0:02:33]}  Qc5 {[%clk 0:01:02]} 16. O-O-O {[%clk 0:02:29]}  O-O-O {[%clk 0:00:59]} 17. g4 {[%clk 0:02:24]}  Be6 {[%clk 0:00:33]} 18. Bxe6+ {[%clk 0:02:07]}  fxe6 {[%clk 0:00:34]} 19. Qc4 {[%clk 0:01:57]}  Qxc4 {[%clk 0:00:23]} 20. Nxc4 {[%clk 0:01:58]}  Nd5 {[%clk 0:00:20]} 21. f4 {[%clk 0:01:54]}  b5 {[%clk 0:00:20]} 22. Na5 {[%clk 0:01:54]}  Kc7 {[%clk 0:00:20]} 23. g5 {[%clk 0:01:53]}  Bg7 {[%clk 0:00:19]} 24. Nb3 {[%clk 0:01:53]}  Rh8 {[%clk 0:00:18]} 25. Nc5 {[%clk 0:01:53]}  Kb6 {[%clk 0:00:09]} 26. Nxe6 {[%clk 0:01:54]}  Bf8 {[%clk 0:00:09]} 27. Be1 {[%clk 0:01:49]}  Nc7 {[%clk 0:00:07]} 28. Bf2+ {[%clk 0:01:49]}  c5 {[%clk 0:00:07]} 29. Bxc5+ {[%clk 0:01:47]}  Kc6 {[%clk 0:00:07]} 30. Nxc7 {[%clk 0:01:45]}  Kxc7 {[%clk 0:00:08]} 31. e6 {[%clk 0:01:37]}  Rh4 {[%clk 0:00:04]} 32. Bd4 {[%clk 0:01:34]}  Kc6 {[%clk 0:00:04]} 33. Be5 {[%clk 0:01:35]} 1-0


[Site "https://www.chess.com"]